[Event "EWIBCC 2019"]
[Site "Monte-Carlo"]
[Date "2019.11.29"]
[Round "6.18"]
[White "Salimova, Nurgyul"]
[Black "Dornbusch, Tatiana"]
[Result "1-0"]
[ECO "E65"]
[WhiteElo "2370"]
[BlackElo "2269"]
[Annotator "NA"]
[PlyCount "117"]
[EventDate "2019.11.29"]
[EventType "swiss"]
[EventCountry "MNC"]
[SourceTitle "playchess.com"]
[Source "ChessBase"]
[SourceQuality "1"]
[TimeControl "180+2"]

1. c4 {[%emt 0:00:00]} Nf6 {[%emt 0:00:00]} 2. Nc3 {[%emt 0:00:01]} g6 {[%emt 0:00:02]} 3. g3 {[%emt 0:00:01]} Bg7 {[%emt 0:00:01]} 4. Bg2 {[%emt 0:00:01]} d6 {[%emt 0:00:02]} 5. d4 {[%emt 0:00:06]} O-O {[%emt 0:00:03]} 6. Nf3 {[%emt 0:00:02]} c5 {[%emt 0:00:07]} 7. O-O {[%emt 0:00:11]} Nc6 {[%emt 0:00:14]} 8. dxc5 {[%emt 0:00:44]} dxc5 {[%emt 0:00:02]} 9. Be3 {[%emt 0:00:03]} Qa5 {[%emt 0:00:38]} 10. Qa4 {[%emt 0:00:13]} Nd7 {[%emt 0:00:14]} 11. Qxa5 {[%emt 0:00:22]} Nxa5 {[%emt 0:00:01]} 12. Nd2 {[%emt 0:00:02]} Rb8 {[%emt 0:00:14]} 13. Rac1 {[%emt 0:00:05]} b6 {[%emt 0:00:10]} 14. b3 {[%emt 0:00:01]} Bb7 {[%emt 0:00:10]} 15. Rfd1 {[%emt 0:00:13]} Bxg2 16. Kxg2 {[%emt 0:00:01]} Nc6 {[%emt 0:00:17]} 17. Nf3 {[%emt 0:00:09]} Rfd8 {[%emt 0:00:05]} 18. Nd5 {[%emt 0:00:05]} e6 {[%emt 0:00:03]} 19. Nc3 {[%emt 0:00:06]} Nde5 {[%emt 0:00:08]} 20. Bf4 {[%emt 0:00:28]} Rbc8 {[%emt 0:00:05]} 21. Nxe5 {[%emt 0:00:06]} Nxe5 {[%emt 0:00:01]} 22. Nb5 {[%emt 0:00:09]} Nc6 {[%emt 0:00:10]} 23. Nd6 {[%emt 0:00:06]} Ra8 {[%emt 0:00:06]} 24. Bg5 {[%emt 0:00:08]} Rd7 {[%emt 0:00:03]} 25. Ne4 {[%emt 0:00:04]} Rxd1 {[%emt 0:00:14]} 26. Rxd1 {[%emt 0:00:00]} h6 {[%emt 0:00:10]} 27. Bf6 {[%emt 0:00:08]} Bxf6 {[%emt 0:00:05]} 28. Nxf6+ {[%emt 0:00:01]} Kg7 {[%emt 0:00:01]} 29. Ne4 {[%emt 0:00:01]} Rd8 {[%emt 0:00:02]} 30. Rxd8 {[%emt 0:00:02]} Nxd8 {[%emt 0:00:01]} 31. e3 {[%emt 0:00:07]} Nc6 {[%emt 0:00:04]} 32. Kf3 {[%emt 0:00:02]} f5 {[%emt 0:00:01]} 33. Nc3 {[%emt 0:00:04]} Kf6 {[%emt 0:00:02]} 34. Ke2 {[%emt 0:00:03]} Ke7 {[%emt 0:00:04]} 35. h4 {[%emt 0:00:06]} Nb4 {[%emt 0:00:05]} 36. a3 {[%emt 0:00:03]} Nc6 {[%emt 0:00:01]} 37. Kd3 {[%emt 0:00:02]} Na5 {[%emt 0:00:02]} 38. b4 {[%emt 0:00:01]} cxb4 {[%emt 0:00:01]} 39. axb4 {[%emt 0:00:00]} Nc6 {[%emt 0:00:01]} 40. Na2 {[%emt 0:00:07]} Ne5+ {[%emt 0:00:02]} 41. Kd4 {[%emt 0:00:02]} Ng4 {[%emt 0:00:01]} 42. f3 {[%emt 0:00:01]} Nh2 {[%emt 0:00:02]} 43. f4 {[%emt 0:00:01]} Nf1 {[%emt 0:00:01]} 44. b5 {[%emt 0:00:04]} Nxg3 {[%emt 0:00:02]} 45. Nb4 {[%emt 0:00:01]} Kd6 {[%emt 0:00:02]} 46. Nc6 {[%emt 0:00:03]} a5 {[%emt 0:00:00]} 47. Ne5 {[%emt 0:00:02]} g5 {[%emt 0:00:04]} 48. hxg5 {[%emt 0:00:02]} hxg5 {[%emt 0:00:01]} 49. fxg5 {[%emt 0:00:01]} Ne2+ {[%emt 0:00:00]} 50. Kd3 {[%emt 0:00:01]} Nc1+ {[%emt 0:00:03]} 51. Kd4 {[%emt 0:00:04]} Nb3+ {[%emt 0:00:02]} 52. Kc3 {[%emt 0:00:00]} Kxe5 {[%emt 0:00:04]} 53. Kxb3 {[%emt 0:00:01]} Kd6 {[%emt 0:00:04]} 54. g6 {[%emt 0:00:01]} Ke7 {[%emt 0:00:01]} 55. c5 {[%emt 0:00:00]} bxc5 {[%emt 0:00:11]} 56. b6 {[%emt 0:00:01]} e5 {[%emt 0:00:06]} 57. b7 {[%emt 0:00:01]} f4 {[%emt 0:00:02]} 58. exf4 {[%emt 0:00:02]} exf4 {[%emt 0:00:00]} 59. b8=Q {[%emt 0:00:02]} 1-0

[Event "EWIBCC 2019"]
[Site "Monte-Carlo"]
[Date "2019.11.29"]
[Round "7.2"]
[White "Stefanova, Antoaneta"]
[Black "Buksa, Nataliya"]
[Result "1-0"]
[ECO "D02"]
[WhiteElo "2481"]
[BlackElo "2410"]
[Annotator "RC"]
[PlyCount "125"]
[EventDate "2019.11.29"]
[EventType "swiss"]
[EventCountry "MNC"]
[SourceTitle "playchess.com"]
[Source "ChessBase"]
[SourceQuality "1"]
[TimeControl "180+2"]

1. d4 {[%emt 0:00:00]} d5 {[%emt 0:00:00]} 2. Nf3 {[%emt 0:00:01]} Nf6 {[%emt 0:00:00]} 3. Bf4 {[%emt 0:00:05]} e6 {[%emt 0:00:01]} 4. e3 {[%emt 0:00:01]} Bd6 {[%emt 0:00:01]} 5. Bg3 {[%emt 0:00:02]} O-O {[%emt 0:00:01]} 6. Nbd2 {[%emt 0:00:01]} c5 {[%emt 0:00:01]} 7. c3 {[%emt 0:00:01]} Qc7 {[%emt 0:00:01]} 8. Ne5 {[%emt 0:00:11]} Nbd7 {[%emt 0:00:08]} 9. f4 {[%emt 0:00:04]} Ne4 {[%emt 0:00:01]} 10. Nxe4 {[%emt 0:00:04]} dxe4 {[%emt 0:00:01]} 11. Nc4 {[%emt 0:00:11]} Nf6 {[%emt 0:00:35]} 12. Nxd6 {[%emt 0:00:11]} Qxd6 {[%emt 0:00:01]} 13. Be2 {[%emt 0:00:30]} Nd5 {[%emt 0:00:32]} 14. Qd2 {[%emt 0:00:20]} cxd4 {[%emt 0:00:18]} 15. Qxd4 {[%emt 0:00:07]} Qb6 {[%emt 0:00:03]} 16. Qxb6 {[%emt 0:00:07]} axb6 {[%emt 0:00:15]} 17. Kf2 {[%emt 0:00:10]} Bd7 {[%emt 0:00:01]} 18. Rhd1 {[%emt 0:00:02]} Bc6 {[%emt 0:00:02]} 19. c4 {[%emt 0:00:10]} Ne7 {[%emt 0:00:11]} 20. Kg1 {[%emt 0:00:14]} Rfd8 {[%emt 0:00:04]} 21. Be1 {[%emt 0:00:13]} Nf5 {[%emt 0:00:06]} 22. Kf2 {[%emt 0:00:01]} Rxd1 {[%emt 0:00:33]} 23. Rxd1 {[%emt 0:00:03]} Kf8 {[%emt 0:00:01]} 24. a3 {[%emt 0:00:02]} Ke8 {[%emt 0:00:01]} 25. g4 {[%emt 0:00:03]} Ne7 {[%emt 0:00:01]} 26. Bc3 {[%emt 0:00:03]} f6 {[%emt 0:00:03]} 27. Bd4 {[%emt 0:00:05]} Ba4 {[%emt 0:00:07]} 28. Rc1 {[%emt 0:00:02]} Nc8 {[%emt 0:00:06]} 29. h4 {[%emt 0:00:03]} Bd7 {[%emt 0:00:14]} 30. g5 {[%emt 0:00:02]} Ke7 {[%emt 0:00:06]} 31. gxf6+ {[%emt 0:00:02]} gxf6 {[%emt 0:00:01]} 32. Rg1 {[%emt 0:00:02]} e5 {[%emt 0:00:17]} 33. fxe5 {[%emt 0:00:03]} fxe5 {[%emt 0:00:01]} 34. Bxe5 {[%emt 0:00:05]} Ra5 {[%emt 0:00:01]} 35. Rg7+ {[%emt 0:00:05]} Ke6 {[%emt 0:00:04]} 36. Bc3 {[%emt 0:00:04]} Rf5+ {[%emt 0:00:01]} 37. Ke1 {[%emt 0:00:01]} h5 {[%emt 0:00:09]} 38. Rh7 {[%emt 0:00:02]} Nd6 {[%emt 0:00:01]} 39. Bxh5 {[%emt 0:00:04]} Rc5 {[%emt 0:00:03]} 40. Bg4+ {[%emt 0:00:05]} Nf5 {[%emt 0:00:01]} 41. Bd4 {[%emt 0:00:07]} Ra5 {[%emt 0:00:02]} 42. b4 {[%emt 0:00:03]} Rxa3 {[%emt 0:00:02]} 43. Bxf5+ {[%emt 0:00:02]} Kxf5 {[%emt 0:00:00]} 44. Rxd7 {[%emt 0:00:01]} Kg4 {[%emt 0:00:03]} 45. Rf7 {[%emt 0:00:02]} Rb3 {[%emt 0:00:01]} 46. Rf4+ {[%emt 0:00:04]} Kg3 {[%emt 0:00:00]} 47. Rxe4 {[%emt 0:00:01]} Rxb4 {[%emt 0:00:03]} 48. h5 {[%emt 0:00:03]} b5 {[%emt 0:00:02]} 49. cxb5 {[%emt 0:00:03]} Rxb5 {[%emt 0:00:01]} 50. h6 {[%emt 0:00:02]} Rh5 {[%emt 0:00:01]} 51. Bg7 {[%emt 0:00:02]} Kf3 {[%emt 0:00:01]} 52. Re7 {[%emt 0:00:02]} b5 {[%emt 0:00:02]} 53. Kd2 {[%emt 0:00:01]} b4 {[%emt 0:00:03]} 54. Rb7 {[%emt 0:00:01]} Rh4 {[%emt 0:00:01]} 55. Kd3 {[%emt 0:00:02]} Kf2 {[%emt 0:00:04]} 56. Bf8 {[%emt 0:00:05]} Kf3 {[%emt 0:00:02]} 57. Rxb4 {[%emt 0:00:03]} Rh1 {[%emt 0:00:01]} 58. Rf4+ {[%emt 0:00:03]} Kg3 {[%emt 0:00:01]} 59. Rf7 {[%emt 0:00:03]} Kg4 {[%emt 0:00:02]} 60. Ke4 {[%emt 0:00:02]} Kg5 {[%emt 0:00:01]} 61. Ke5 {[%emt 0:00:02]} Kg6 {[%emt 0:00:01]} 62. Rg7+ {[%emt 0:00:02]} Kh5 {[%emt 0:00:09]} 63. h7 {[%emt 0:00:03]} 1-0

[Event "EWIBCC 2019"]
[Site "Monte-Carlo"]
[Date "2019.11.29"]
[Round "7.4"]
[White "Kosteniuk, Alexandra"]
[Black "Bodnaruk, Anastasia"]
[Result "1-0"]
[ECO "B22"]
[WhiteElo "2483"]
[BlackElo "2412"]
[Annotator "RC"]
[PlyCount "87"]
[EventDate "2019.11.29"]
[EventType "swiss"]
[EventCountry "MNC"]
[SourceTitle "playchess.com"]
[Source "ChessBase"]
[SourceQuality "1"]
[TimeControl "180+2"]

1. e4 {[%emt 0:00:00]} c5 {[%emt 0:00:00]} 2. c3 {[%emt 0:00:00]} Nf6 {[%emt 0:00:03]} 3. e5 {[%emt 0:00:01]} Nd5 {[%emt 0:00:01]} 4. Nf3 {[%emt 0:00:01]} Nc6 {[%emt 0:00:03]} 5. Bc4 {[%emt 0:00:01]} Nb6 {[%emt 0:00:03]} 6. Bb3 {[%emt 0:00:01]} c4 {[%emt 0:00:02]} 7. Bc2 {[%emt 0:00:00]} d6 {[%emt 0:00:04]} 8. exd6 {[%emt 0:00:02]} Qxd6 {[%emt 0:00:01]} 9. O-O {[%emt 0:00:02]} Bg4 {[%emt 0:00:11]} 10. Qe2 {[%emt 0:00:01]} O-O-O {[%emt 0:00:23]} 11. Na3 {[%emt 0:00:01]} e5 {[%emt 0:00:28]} 12. Nxc4 {[%emt 0:00:10]} Nxc4 13. Qxc4 {[%emt 0:00:01]} Bxf3 {[%emt 0:00:18]} 14. gxf3 {[%emt 0:00:01]} Kb8 {[%emt 0:00:01]} 15. b4 {[%emt 0:00:08]} Be7 {[%emt 0:00:28]} 16. b5 {[%emt 0:00:09]} Na5 {[%emt 0:00:05]} 17. Qe4 {[%emt 0:00:14]} f5 {[%emt 0:00:18]} 18. Qe2 {[%emt 0:00:30]} Rhf8 {[%emt 0:00:27]} 19. a4 {[%emt 0:00:09]} Bg5 {[%emt 0:00:22]} 20. Ba3 {[%emt 0:00:09]} Qh6 {[%emt 0:00:09]} 21. Rfd1 {[%emt 0:01:33]} Bf4 {[%emt 0:00:04]} 22. Kf1 {[%emt 0:00:00]} Qxh2 {[%emt 0:00:04]} 23. Ke1 {[%emt 0:00:01]} Rf7 {[%emt 0:00:03]} 24. Bc5 {[%emt 0:00:11]} b6 {[%emt 0:00:04]} 25. Be3 {[%emt 0:00:01]} Nb7 {[%emt 0:00:02]} 26. d4 {[%emt 0:00:09]} Re7 {[%emt 0:00:03]} 27. d5 {[%emt 0:00:01]} Nd6 {[%emt 0:00:02]} 28. a5 {[%emt 0:00:02]} Bxe3 {[%emt 0:00:07]} 29. fxe3 {[%emt 0:00:02]} Qh1+ {[%emt 0:00:00]} 30. Kd2 {[%emt 0:00:01]} Qh6 {[%emt 0:00:00]} 31. axb6 axb6 {[%emt 0:00:00]} 32. Ra4 {[%emt 0:00:07]} Rb7 {[%emt 0:00:00]} 33. Rda1 {[%emt 0:00:01]} Qf6 {[%emt 0:00:03]} 34. Ra8+ {[%emt 0:00:18]} Kc7 35. Rxd8 {[%emt 0:00:00]} Kxd8 {[%emt 0:00:02]} 36. Ra8+ {[%emt 0:00:00]} Kc7 {[%emt 0:00:01]} 37. c4 {[%emt 0:00:00]} e4 {[%emt 0:00:02]} 38. fxe4 {[%emt 0:00:00]} fxe4 {[%emt 0:00:01]} 39. Qh2 {[%emt 0:00:10]} Qb2 {[%emt 0:00:07]} 40. Qf4 {[%emt 0:00:00]} Qb4+ {[%emt 0:00:02]} 41. Kd1 {[%emt 0:00:00]} Qxc4 {[%emt 0:00:02]} 42. Qe5 {[%emt 0:00:00]} Kd7 {[%emt 0:00:03]} 43. Qe6+ {[%emt 0:00:00]} Kc7 {[%emt 0:00:01]} 44. Qe7# {[%emt 0:00:00]} 1-0

[Event "EWIBCC 2019"]
[Site "Monte-Carlo"]
[Date "2019.11.29"]
[Round "7.7"]
[White "Chiburdanidze, Maia"]
[Black "Daulyte-Cornette, Deimante"]
[Result "1/2-1/2"]
[ECO "D05"]
[WhiteElo "2500"]
[BlackElo "2405"]
[Annotator "RC"]
[PlyCount "92"]
[EventDate "2019.11.29"]
[EventType "swiss"]
[EventCountry "MNC"]
[SourceTitle "playchess.com"]
[Source "ChessBase"]
[SourceQuality "1"]
[TimeControl "180+2"]

1. d4 {[%emt 0:00:00]} Nf6 {[%emt 0:00:00]} 2. Nf3 {[%emt 0:00:00]} b6 {[%emt 0:00:01]} 3. e3 {[%emt 0:00:02]} Bb7 {[%emt 0:00:02]} 4. Bd3 {[%emt 0:00:01]} e6 {[%emt 0:00:05]} 5. O-O {[%emt 0:00:03]} d5 {[%emt 0:00:02]} 6. b3 {[%emt 0:00:02]} c5 {[%emt 0:00:03]} 7. Bb2 {[%emt 0:00:01]} Bd6 {[%emt 0:00:08]} 8. Nbd2 {[%emt 0:00:02]} Nc6 {[%emt 0:00:07]} 9. a3 {[%emt 0:00:02]} O-O {[%emt 0:00:04]} 10. Ne5 {[%emt 0:00:06]} Rc8 {[%emt 0:00:20]} 11. f4 {[%emt 0:00:12]} Ne7 {[%emt 0:00:11]} 12. Qe2 {[%emt 0:00:16]} Ne4 {[%emt 0:00:17]} 13. Nxe4 {[%emt 0:00:21]} dxe4 {[%emt 0:00:01]} 14. Bc4 {[%emt 0:00:01]} Bd5 {[%emt 0:00:13]} 15. Bxd5 {[%emt 0:00:12]} exd5 {[%emt 0:00:02]} 16. f5 {[%emt 0:00:04]} f6 {[%emt 0:00:06]} 17. Ng4 {[%emt 0:00:01]} cxd4 {[%emt 0:00:19]} 18. Bxd4 {[%emt 0:00:04]} Qc7 {[%emt 0:00:08]} 19. h4 {[%emt 0:00:11]} Qxc2 {[%emt 0:00:06]} 20. Qa6 {[%emt 0:00:23]} Nc6 {[%emt 0:00:32]} 21. Rac1 {[%emt 0:00:34]} Qxb3 {[%emt 0:00:04]} 22. Rc3 {[%emt 0:00:05]} Qa2 {[%emt 0:00:07]} 23. Rf2 {[%emt 0:00:06]} Qb1+ {[%emt 0:00:13]} 24. Rf1 {[%emt 0:00:02]} Qa2 {[%emt 0:00:03]} 25. Rfc1 {[%emt 0:00:18]} Nxd4 {[%emt 0:00:07]} 26. Rxc8 {[%emt 0:00:06]} Ne2+ {[%emt 0:00:02]} 27. Kf1 {[%emt 0:00:01]} Nxc1 {[%emt 0:00:07]} 28. Rxc1 {[%emt 0:00:06]} Qxa3 {[%emt 0:00:06]} 29. Qxa3 {[%emt 0:00:03]} Bxa3 {[%emt 0:00:01]} 30. Ra1 {[%emt 0:00:00]} Bc5 {[%emt 0:00:04]} 31. Rxa7 {[%emt 0:00:01]} h5 {[%emt 0:00:02]} 32. Nf2 {[%emt 0:00:03]} Bxe3 {[%emt 0:00:01]} 33. Rd7 {[%emt 0:00:03]} d4 {[%emt 0:00:09]} 34. Nxe4 {[%emt 0:00:01]} Rc8 {[%emt 0:00:03]} 35. Nd6 {[%emt 0:00:04]} Rc1+ {[%emt 0:00:01]} 36. Ke2 {[%emt 0:00:01]} Rc2+ {[%emt 0:00:01]} 37. Kd3 {[%emt 0:00:05]} Rd2+ {[%emt 0:00:05]} 38. Ke4 {[%emt 0:00:01]} Rxg2 {[%emt 0:00:02]} 39. Rd8+ {[%emt 0:00:10]} Kh7 {[%emt 0:00:01]} 40. Nf7 {[%emt 0:00:00]} g6 {[%emt 0:00:04]} 41. Rd7 {[%emt 0:00:14]} gxf5+ {[%emt 0:00:07]} 42. Kxf5 {[%emt 0:00:01]} Rf2+ {[%emt 0:00:01]} 43. Ke6 {[%emt 0:00:01]} Kg6 {[%emt 0:00:03]} 44. Nh8+ {[%emt 0:00:02]} Kh6 {[%emt 0:00:01]} 45. Nf7+ {[%emt 0:00:02]} Kg6 {[%emt 0:00:02]} 46. Nh8+ {[%emt 0:00:12]} Kh6 {[%emt 0:00:08] Ke5} 1/2-1/2

[Event "EWIBCC 2019"]
[Site "Monte-Carlo"]
[Date "2019.11.29"]
[Round "7.8"]
[White "Paehtz, Elisabeth"]
[Black "Mkrtchian, Lilit"]
[Result "1-0"]
[ECO "A80"]
[WhiteElo "2484"]
[BlackElo "2402"]
[Annotator "RC"]
[PlyCount "49"]
[EventDate "2019.11.29"]
[EventType "swiss"]
[EventCountry "MNC"]
[SourceTitle "playchess.com"]
[Source "ChessBase"]
[SourceQuality "1"]
[TimeControl "180+2"]

1. d4 {[%emt 0:00:00]} e6 {[%emt 0:00:01]} 2. Bf4 {[%emt 0:00:03]} f5 {[%emt 0:00:05]} 3. e3 {[%emt 0:00:03]} Nf6 {[%emt 0:00:03]} 4. h3 {[%emt 0:00:08]} b6 {[%emt 0:00:02]} 5. Nd2 {[%emt 0:00:13]} Bb7 {[%emt 0:00:02]} 6. c3 {[%emt 0:00:02]} Be7 {[%emt 0:00:11]} 7. Ngf3 {[%emt 0:00:07]} O-O {[%emt 0:00:07]} 8. Bd3 {[%emt 0:00:04]} d6 {[%emt 0:00:10]} 9. Qc2 {[%emt 0:00:04]} Nbd7 {[%emt 0:00:11]} 10. Rg1 {[%emt 0:00:05]} Qe8 {[%emt 0:00:59]} 11. g4 {[%emt 0:00:06]} fxg4 {[%emt 0:00:51]} 12. Ng5 {[%emt 0:00:11]} g6 {[%emt 0:00:17]} 13. Nxe6 {[%emt 0:00:05]} Nd5 {[%emt 0:00:04]} 14. Nxf8 {[%emt 0:00:17]} Nxf4 {[%emt 0:00:02]} 15. Nxd7 {[%emt 0:00:32]} Nxd3+ {[%emt 0:00:02]} 16. Qxd3 {[%emt 0:00:02]} Qxd7 {[%emt 0:00:01]} 17. Rxg4 {[%emt 0:00:02]} Bf6 {[%emt 0:00:07]} 18. O-O-O {[%emt 0:00:04]} Bg7 {[%emt 0:00:02]} 19. Rdg1 {[%emt 0:00:05]} Rf8 {[%emt 0:00:01]} 20. f4 {[%emt 0:00:03]} Kh8 {[%emt 0:00:03]} 21. h4 {[%emt 0:00:02]} Qa4 {[%emt 0:00:09]} 22. a3 {[%emt 0:00:11]} Qa5 {[%emt 0:00:01]} 23. Rg5 {[%emt 0:00:04]} Ba6 {[%emt 0:00:04]} 24. Qc2 {[%emt 0:00:15]} b5 {[%emt 0:00:04]} 25. h5 {[%emt 0:00:02]} 1-0

[Event "EWIBCC 2019"]
[Site "Monte-Carlo"]
[Date "2019.11.29"]
[Round "7.9"]
[White "Guichard, Pauline"]
[Black "Arakhamia-Grant, Ketevan"]
[Result "1-0"]
[ECO "A21"]
[WhiteElo "2407"]
[BlackElo "2376"]
[Annotator "ChessBase"]
[PlyCount "83"]
[EventDate "2019.11.29"]
[EventType "swiss"]
[EventCountry "MNC"]
[SourceTitle "playchess.com"]
[Source "ChessBase"]
[SourceQuality "1"]
[TimeControl "180+2"]

1. c4 {[%emt 0:00:00]} g6 {[%emt 0:00:00]} 2. Nf3 {[%emt 0:00:01]} Bg7 {[%emt 0:00:01]} 3. g3 {[%emt 0:00:02]} e5 {[%emt 0:00:01]} 4. Nc3 {[%emt 0:00:02]} f5 {[%emt 0:00:05]} 5. h4 {[%emt 0:00:21]} e4 {[%emt 0:00:09]} 6. Ng5 {[%emt 0:00:03]} Nf6 {[%emt 0:00:03]} 7. d3 {[%emt 0:00:05]} h6 {[%emt 0:00:16]} 8. Nh3 {[%emt 0:00:07]} exd3 {[%emt 0:00:31]} 9. Qxd3 {[%emt 0:00:03]} Nc6 {[%emt 0:00:19]} 10. Nf4 {[%emt 0:00:31]} Ne5 {[%emt 0:00:03]} 11. Qc2 {[%emt 0:00:03]} O-O {[%emt 0:00:05]} 12. Bg2 {[%emt 0:00:02]} d6 {[%emt 0:00:12]} 13. b3 {[%emt 0:00:02]} c6 {[%emt 0:00:04]} 14. O-O {[%emt 0:00:09]} Nfg4 {[%emt 0:00:37]} 15. Ba3 {[%emt 0:00:16]} g5 {[%emt 0:00:20]} 16. hxg5 {[%emt 0:00:44]} hxg5 {[%emt 0:00:01]} 17. Nh3 {[%emt 0:00:16]} Be6 {[%emt 0:00:06]} 18. Rad1 {[%emt 0:00:03]} Nf7 {[%emt 0:00:07]} 19. e4 {[%emt 0:00:15]} f4 {[%emt 0:00:13]} 20. gxf4 {[%emt 0:00:11]} gxf4 {[%emt 0:00:02]} 21. Nxf4 {[%emt 0:00:07]} Qh4 {[%emt 0:00:01]} 22. Nh3 {[%emt 0:00:05]} Ng5 {[%emt 0:00:07]} 23. f3 {[%emt 0:00:11]} Ne3 {[%emt 0:00:07]} 24. Qd2 {[%emt 0:00:05]} Nxh3+ {[%emt 0:00:08]} 25. Bxh3 {[%emt 0:00:01]} Qg3+ {[%emt 0:00:00]} 26. Bg2 {[%emt 0:00:02]} Nxf1 {[%emt 0:00:05]} 27. Rxf1 {[%emt 0:00:02]} Bh3 {[%emt 0:00:02]} 28. Rf2 {[%emt 0:00:01]} c5 {[%emt 0:00:02]} 29. Ne2 {[%emt 0:00:01]} Qg6 {[%emt 0:00:03]} 30. Bc1 {[%emt 0:00:05]} Be6 {[%emt 0:00:04]} 31. Qxd6 {[%emt 0:00:06]} Rad8 {[%emt 0:00:01]} 32. Qxc5 {[%emt 0:00:00]} Rd1+ {[%emt 0:00:02]} 33. Kh2 {[%emt 0:00:00]} Qh6+ {[%emt 0:00:02]} 34. Bxh6 {[%emt 0:00:01]} Bxh6 {[%emt 0:00:01]} 35. Qh5 {[%emt 0:00:02]} Bg7 {[%emt 0:00:02]} 36. Qg6 {[%emt 0:00:01]} Bf7 {[%emt 0:00:02]} 37. Qg4 {[%emt 0:00:01]} Re8 {[%emt 0:00:03]} 38. Ng3 {[%emt 0:00:01]} Re6 {[%emt 0:00:02]} 39. Nf5 {[%emt 0:00:02]} Rg6 {[%emt 0:00:03]} 40. Ne7+ {[%emt 0:00:01]} Kh7 {[%emt 0:00:00]} 41. Nxg6 Bxg6 {[%emt 0:00:01]} 42. f4 {[%emt 0:00:02]} 1-0

[Event "EWIBCC 2019"]
[Site "Monte-Carlo"]
[Date "2019.11.29"]
[Round "7.10"]
[White "Kazarian, Anna-Maja"]
[Black "Bulmaga, Irina"]
[Result "0-1"]
[ECO "E18"]
[WhiteElo "2109"]
[BlackElo "2435"]
[Annotator "NA"]
[PlyCount "92"]
[EventDate "2019.11.29"]
[EventType "swiss"]
[EventCountry "MNC"]
[SourceTitle "playchess.com"]
[Source "ChessBase"]
[SourceQuality "1"]
[TimeControl "180+2"]

1. Nf3 {[%emt 0:00:00]} Nf6 {[%emt 0:00:00]} 2. c4 {[%emt 0:00:00]} e6 {[%emt 0:00:01]} 3. d4 {[%emt 0:00:01]} b6 {[%emt 0:00:01]} 4. g3 {[%emt 0:00:02]} Bb7 $11 {[%emt 0:00:01]} 5. Bg2 {[%emt 0:00:01]} Be7 {[%emt 0:00:01]} 6. O-O {[%emt 0:00:02]} O-O {[%emt 0:00:02]} 7. Re1 {[%emt 0:00:07]} Na6 {[%emt 0:00:02]} 8. Nc3 {[%emt 0:00:15]} Ne4 {[%emt 0:00:02]} 9. Nxe4 {[%emt 0:00:16]} Bxe4 {[%emt 0:00:02]} 10. Ne5 {[%emt 0:00:15]} Bxg2 {[%emt 0:00:07]} 11. Kxg2 {[%emt 0:00:01]} c5 {[%emt 0:00:30]} 12. d5 {[%emt 0:00:20]} Bf6 {[%emt 0:00:06]} 13. Nf3 {[%emt 0:00:37]} exd5 {[%emt 0:00:01]} 14. Qxd5 {[%emt 0:00:01]} Nb4 {[%emt 0:00:03]} 15. Qd1 {[%emt 0:00:13]} Re8 {[%emt 0:00:10]} 16. a3 {[%emt 0:00:18]} Nc6 {[%emt 0:00:01]} 17. Rb1 {[%emt 0:00:10]} a6 {[%emt 0:00:05]} 18. b4 {[%emt 0:00:04]} cxb4 {[%emt 0:00:06]} 19. axb4 {[%emt 0:00:01]} b5 {[%emt 0:00:00]} 20. cxb5 {[%emt 0:00:03]} axb5 {[%emt 0:00:02]} 21. Qd5 {[%emt 0:00:04]} Bc3 {[%emt 0:00:13]} 22. Bd2 {[%emt 0:00:09]} Bxd2 {[%emt 0:00:04]} 23. Qxd2 {[%emt 0:00:07]} Qe7 {[%emt 0:00:04]} 24. e3 {[%emt 0:00:04]} Qe4 {[%emt 0:00:06]} 25. Red1 {[%emt 0:00:14]} g5 {[%emt 0:00:14]} 26. Qd5 {[%emt 0:00:04]} g4 {[%emt 0:00:16]} 27. Qxe4 {[%emt 0:00:01]} Rxe4 {[%emt 0:00:02]} 28. Ne1 {[%emt 0:00:01]} Rxb4 {[%emt 0:00:08]} 29. Rxb4 {[%emt 0:00:01]} Nxb4 {[%emt 0:00:01]} 30. Rxd7 {[%emt 0:00:02]} Na2 {[%emt 0:00:10]} 31. Nd3 {[%emt 0:00:04]} b4 {[%emt 0:00:06]} 32. Rd4 {[%emt 0:00:00]} b3 {[%emt 0:00:07]} 33. Rxg4+ {[%emt 0:00:02]} Kf8 {[%emt 0:00:01]} 34. Rh4 {[%emt 0:00:10]} Rd8 {[%emt 0:00:02]} 35. Nb2 {[%emt 0:00:03]} Rd2 {[%emt 0:00:02]} 36. Nc4 {[%emt 0:00:01]} Rc2 {[%emt 0:00:02]} 37. Na3 {[%emt 0:00:02]} Rc3 {[%emt 0:00:04]} 38. Rxh7 {[%emt 0:00:03]} b2 {[%emt 0:00:01]} 39. Nb1 {[%emt 0:00:03]} Rc1 {[%emt 0:00:02]} 40. Na3 {[%emt 0:00:01]} Kg8 {[%emt 0:00:21]} 41. Rh5 {[%emt 0:00:04]} Nc3 {[%emt 0:00:11]} 42. Rg5+ {[%emt 0:00:02]} Kf8 {[%emt 0:00:02]} 43. Rc5 {[%emt 0:00:10]} Kg7 {[%emt 0:00:02]} 44. Rc4 {[%emt 0:00:01]} Ra1 {[%emt 0:00:03]} 45. Rb4 {[%emt 0:00:07]} Nd1 {[%emt 0:00:07]} 46. Nc2 {[%emt 0:00:05]} b1=Q {[%emt 0:00:38]} 0-1